fUST/lending_fUST_20250910
["ID","MTS","AMOUNT","RATE_DAILY","PERIOD"]
[384619817,1757484660686,-586.0,0.00014924,2]
[384619818,1757484660696,-176.85190965,0.00014968,2]
[384619819,1757484660705,-1001.8338497,0.00015,2]
[384619820,1757484660715,-259.47599227,0.00015,2]
[384619821,1757484660724,-160.0,0.00015,2]
[384619822,1757484660733,-155.0,0.00015067,2]
[384619823,1757484660742,-215.0,0.00015068,2]
[384619824,1757484660752,-558.0,0.00015068,2]
[384619825,1757484660762,-500.0,0.00015068,2]
[384619826,1757484660771,-480.0,0.00015068,2]
[384619827,1757484660782,-486.00365144,0.00015068,2]
[384619828,1757484660792,-480.0,0.00015068,2]
[384619829,1757484660802,-480.0,0.00015068,2]
[384619830,1757484660811,-480.0,0.00015068,2]
[384619831,1757484660820,-480.0,0.00015068,2]
[384619832,1757484660830,-480.0,0.00015068,2]
[384619833,1757484660839,-480.0,0.00015068,2]
[384619834,1757484660849,-480.0,0.00015068,2]
[384619835,1757484660859,-480.0,0.00015068,2]
[384619836,1757484660869,-480.0,0.00015068,2]
[384619837,1757484660879,-480.0,0.00015068,2]
[384619838,1757484660889,-480.0,0.00015068,2]
[384619839,1757484660900,-480.0,0.00015068,2]
[384619840,1757484660910,-480.0,0.00015068,2]
[384619841,1757484660919,-480.0,0.00015068,2]
[384619842,1757484660928,-257.88347557,0.00015068,2]
[384619843,1757484660938,-337.13263421,0.00015068,2]
[384619844,1757484660948,-473.63104389,0.00015068,2]
[384619845,1757484660958,-480.0,0.00015068,2]
[384619846,1757484660968,-480.0,0.00015068,2]
[384619847,1757484660978,-494.4683477,0.00015068,2]
[384619848,1757484660987,-480.0,0.00015068,2]
[384619849,1757484660996,-480.0,0.00015068,2]
[384619850,1757484661006,-486.74006846,0.00015068,2]
[384619851,1757484661015,-480.0,0.00015068,2]
[384619852,1757484661025,-480.0,0.00015068,2]
[384619853,1757484661034,-480.0,0.00015068,2]
[384619854,1757484661044,-480.0,0.00015068,2]
[384619855,1757484661054,-486.73737436,0.00015068,2]
[384619856,1757484661065,-480.0,0.00015068,2]
[384619857,1757484661074,-480.0,0.00015068,2]
[384619858,1757484661083,-480.0,0.00015068,2]
[384619859,1757484661093,-480.0,0.00015068,2]
[384619860,1757484661104,-480.0,0.00015068,2]
[384619861,1757484661114,-480.0,0.00015068,2]
[384619862,1757484661123,-480.0,0.00015068,2]
[384619863,1757484661133,-480.0,0.00015068,2]
[384619864,1757484661142,-480.0,0.00015068,2]
[384619865,1757484661152,-480.0,0.00015068,2]
[384619866,1757484661161,-480.0,0.00015068,2]
[384619867,1757484661170,-480.0,0.00015068,2]
[384619868,1757484661179,-480.0,0.00015068,2]
[384619869,1757484661189,-390.55754338,0.00015068,2]
[384619870,1757484661198,-898.09,0.00015068,2]
[384619871,1757484661207,-480.0,0.00015068,2]
[384619872,1757484661216,-987.19,0.00015068,2]
[384619873,1757484661226,-480.0,0.00015068,2]
[384619874,1757484661235,-8763.89,0.00015068,2]
[384619875,1757484661244,-480.0,0.00015068,2]
[384619876,1757484661253,-480.0,0.00015068,2]
[384619877,1757484661263,-723.59,0.00015068,2]
[384619878,1757484661272,-480.0,0.00015068,2]
[384619879,1757484661281,-480.0,0.00015068,2]
[384619880,1757484661291,-480.0,0.00015068,2]
[384619881,1757484661300,-480.0,0.00015068,2]
[384619882,1757484661310,-480.0,0.00015068,2]
[384619883,1757484661320,-496.36760986,0.00015068,2]
[384619884,1757484661329,-480.0,0.00015068,2]
[384619885,1757484661338,-480.0,0.00015068,2]
[384619886,1757484661347,-480.0,0.00015068,2]
[384619887,1757484661356,-480.0,0.00015068,2]
[384619888,1757484661366,-480.0,0.00015068,2]
[384619889,1757484661375,-585.24,0.00015068,2]
[384619890,1757484661384,-480.0,0.00015068,2]
[384619891,1757484661394,-480.0,0.00015068,2]
[384619892,1757484661403,-245.29335177,0.00015068,2]
[384619893,1757484661412,-493.30063981,0.00015068,2]
[384619894,1757484661422,-760.57,0.00015068,2]
[384619895,1757484661431,-480.0,0.00015068,2]
[384619896,1757484661440,-480.0,0.00015068,2]
[384619897,1757484661450,-480.0,0.00015068,2]
[384619898,1757484661460,-815.92,0.00015068,2]
[384619899,1757484661469,-480.0,0.00015068,2]
[384619900,1757484661478,-480.0,0.00015068,2]
[384619901,1757484661488,-480.0,0.00015068,2]
[384619902,1757484661498,-480.0,0.00015068,2]
[384619903,1757484661507,-480.0,0.00015068,2]
[384619904,1757484661517,-480.0,0.00015068,2]
[384619905,1757484661527,-480.0,0.00015068,2]
[384619906,1757484661536,-480.0,0.00015068,2]
[384619907,1757484661545,-480.0,0.00015068,2]
[384619908,1757484661555,-480.0,0.00015068,2]
[384619909,1757484661565,-325.5618107,0.00015068,2]
[384619910,1757484661574,-480.0,0.00015068,2]
[384619911,1757484661583,-480.0,0.00015068,2]
[384619912,1757484661593,-480.0,0.00015068,2]
[384619913,1757484661602,-480.0,0.00015068,2]
[384619914,1757484661612,-798.65,0.00015068,2]
[384619915,1757484661622,-5038.12,0.00015068,2]
[384619916,1757484661723,-480.0,0.00015068,2]
[384619917,1757484661733,-1104.48,0.00015068,2]
[384619918,1757484661743,-480.0,0.00015068,2]
[384619919,1757484661751,-480.0,0.00015068,2]
[384619920,1757484661760,-480.0,0.00015068,2]
[384619921,1757484661770,-1873.01,0.00015068,2]
[384619922,1757484661780,-480.0,0.00015068,2]
[384619923,1757484661792,-480.0,0.00015068,2]
[384619924,1757484661801,-480.0,0.00015068,2]
[384619925,1757484661810,-358.08520561,0.00015068,2]
[384619926,1757484661819,-480.0,0.00015068,2]
[384619927,1757484661828,-480.0,0.00015068,2]
[384619928,1757484661838,-480.0,0.00015068,2]
[384619929,1757484661848,-777.98,0.00015068,2]
[384619930,1757484661858,-480.0,0.00015068,2]
[384619931,1757484661867,-480.0,0.00015068,2]
[384619932,1757484661877,-480.0,0.00015068,2]
[384619933,1757484661886,-575.06401368,0.00015068,2]
[384619934,1757484661897,-480.0,0.00015068,2]
[384619935,1757484661907,-480.0,0.00015068,2]
[384619936,1757484661917,-480.0,0.00015068,2]
[384619937,1757484661926,-480.0,0.00015068,2]
[384619938,1757484661935,-480.0,0.00015068,2]
[384619939,1757484661945,-500.0,0.00015068,2]
[384619940,1757484661955,-152.84183398,0.00015068,2]
[384619941,1757484661964,-340.00513558,0.00015068,2]
[384619942,1757484661973,-1503.24189701,0.00015068,2]
[384619943,1757484661983,-1500.0,0.00015068,2]
[384619944,1757484661992,-1500.0,0.00015068,2]
[384619945,1757484662001,-1500.0,0.00015068,2]
[384619946,1757484662011,-1500.0,0.00015068,2]
[384619947,1757484662020,-1500.0,0.00015068,2]
[384619948,1757484662030,-1500.0,0.00015068,2]
[384619949,1757484662039,-553.03692836,0.00015068,2]
[384619950,1757484662048,-1500.0,0.00015068,2]
[384619951,1757484662058,-1500.0,0.00015068,2]
[384619952,1757484662068,-1500.0,0.00015068,2]
[384619953,1757484662077,-1500.0,0.00015068,2]
[384619954,1757484662086,-554.951731,0.00015068,2]
[384619955,1757484662095,-168.0,0.00015134,2]
[384619956,1757484662104,-168.0,0.00015149,2]
[384619957,1757484662114,-391.019,0.00015166,2]
[384619958,1757484662123,-429.873,0.00015166,2]
[384619959,1757484662132,-151.0,0.000152,2]
[384619960,1757484662142,-558.0,0.00015342,2]
[384619961,1757484662151,-500.0,0.00015342,2]
[384619962,1757484662160,-480.0,0.00015342,2]
[384619963,1757484662169,-480.0,0.00015342,2]
[384619964,1757484662178,-480.0,0.00015342,2]
[384619965,1757484662188,-480.0,0.00015342,2]
[384619966,1757484662197,-480.0,0.00015342,2]
[384619967,1757484662206,-480.0,0.00015342,2]
[384619968,1757484662215,-480.0,0.00015342,2]
[384619969,1757484662224,-480.0,0.00015342,2]
[384619970,1757484662233,-480.0,0.00015342,2]
[384619971,1757484662242,-480.0,0.00015342,2]
[384619972,1757484662251,-480.0,0.00015342,2]
[384619973,1757484662261,-480.0,0.00015342,2]
[384619974,1757484662270,-480.0,0.00015342,2]
[384619975,1757484662279,-480.0,0.00015342,2]
[384619976,1757484662288,-480.0,0.00015342,2]
[384619977,1757484662298,-480.0,0.00015342,2]
[384619978,1757484662307,-480.0,0.00015342,2]
[384619979,1757484662316,-494.90975391,0.00015342,2]
[384619980,1757484662326,-480.0,0.00015342,2]
[384619981,1757484662335,-480.0,0.00015342,2]
[384619982,1757484662344,-480.0,0.00015342,2]
[384619983,1757484662354,-480.0,0.00015342,2]
[384619984,1757484662363,-480.0,0.00015342,2]
[384619985,1757484662372,-480.0,0.00015342,2]
[384619986,1757484662382,-480.0,0.00015342,2]
[384619987,1757484662391,-480.0,0.00015342,2]
[384619988,1757484662400,-480.0,0.00015342,2]
[384619989,1757484662409,-480.0,0.00015342,2]
[384619990,1757484662419,-480.0,0.00015342,2]
[384619991,1757484662428,-480.0,0.00015342,2]
[384619992,1757484662438,-480.0,0.00015342,2]
[384619993,1757484662447,-480.0,0.00015342,2]
[384619994,1757484662457,-480.0,0.00015342,2]
[384619995,1757484662466,-480.0,0.00015342,2]
[384619996,1757484662476,-480.0,0.00015342,2]
[384619997,1757484662485,-898.09,0.00015342,2]
[384619998,1757484662494,-480.0,0.00015342,2]
[384619999,1757484662503,-987.19,0.00015342,2]
[384620000,1757484662512,-480.0,0.00015342,2]
[384620001,1757484662523,-8763.89,0.00015342,2]
[384620002,1757484662532,-480.0,0.00015342,2]
[384620003,1757484662541,-480.0,0.00015342,2]
[384620004,1757484662551,-723.59,0.00015342,2]
[384620005,1757484662561,-480.0,0.00015342,2]
[384620006,1757484662572,-480.0,0.00015342,2]
[384620007,1757484662581,-480.0,0.00015342,2]
[384620008,1757484662591,-480.0,0.00015342,2]
[384620009,1757484662600,-480.0,0.00015342,2]
[384620010,1757484662610,-480.0,0.00015342,2]
[384620011,1757484662619,-480.0,0.00015342,2]
[384620012,1757484662628,-480.0,0.00015342,2]
[384620013,1757484662638,-480.0,0.00015342,2]
[384620014,1757484662647,-480.0,0.00015342,2]
[384620015,1757484662657,-585.24,0.00015342,2]
[384620016,1757484662666,-480.0,0.00015342,2]
[384620017,1757484662675,-480.0,0.00015342,2]
[384620018,1757484662684,-760.57,0.00015342,2]
[384620019,1757484662694,-480.0,0.00015342,2]
[384620020,1757484662703,-480.0,0.00015342,2]
[384620021,1757484662713,-480.0,0.00015342,2]
[384620022,1757484662722,-815.92,0.00015342,2]
[384620023,1757484662732,-480.0,0.00015342,2]
[384620024,1757484662741,-480.0,0.00015342,2]
[384620025,1757484662751,-480.0,0.00015342,2]
[384620026,1757484662761,-480.0,0.00015342,2]
[384620027,1757484662771,-480.0,0.00015342,2]
[384620028,1757484662782,-480.0,0.00015342,2]
[384620029,1757484662795,-480.0,0.00015342,2]
[384620030,1757484662804,-480.0,0.00015342,2]
[384620031,1757484662814,-480.0,0.00015342,2]
[384620032,1757484662823,-480.0,0.00015342,2]
[384620033,1757484662834,-480.0,0.00015342,2]
[384620034,1757484662843,-480.0,0.00015342,2]
[384620035,1757484662852,-480.0,0.00015342,2]
[384620036,1757484662861,-480.0,0.00015342,2]
[384620037,1757484662872,-798.65,0.00015342,2]
[384620038,1757484662883,-5038.12,0.00015342,2]
[384620039,1757484662892,-480.0,0.00015342,2]
[384620040,1757484662901,-1104.48,0.00015342,2]
[384620041,1757484662912,-480.0,0.00015342,2]
[384620042,1757484662921,-480.0,0.00015342,2]
[384620043,1757484662931,-480.0,0.00015342,2]
[384620044,1757484662940,-1873.01,0.00015342,2]
[384620045,1757484662950,-480.0,0.00015342,2]
[384620046,1757484662960,-480.0,0.00015342,2]
[384620047,1757484662969,-480.0,0.00015342,2]
[384620048,1757484662979,-480.0,0.00015342,2]
[384620049,1757484662988,-480.0,0.00015342,2]
[384620050,1757484662997,-480.0,0.00015342,2]
[384620051,1757484663006,-777.98,0.00015342,2]
[384620052,1757484663016,-480.0,0.00015342,2]
[384620053,1757484663025,-480.0,0.00015342,2]
[384620054,1757484663035,-253.91262608,0.00015342,2]
[384620055,1757484663044,-480.0,0.00015342,2]
[384620056,1757484663054,-480.0,0.00015342,2]
[384620057,1757484663064,-480.0,0.00015342,2]
[384620058,1757484663073,-480.0,0.00015342,2]
[384620059,1757484663083,-480.0,0.00015342,2]
[384620060,1757484663094,-720.0,0.00015368,2]
[384620061,1757484663103,-380.18444912,0.0001548,7]
[384620062,1757484663114,-2000.0,0.000155,2]
[384620063,1757484663124,-151.0,0.000155,2]
[384620064,1757484663134,-558.0,0.00015616,2]
[384620065,1757484663145,-512.5602817,0.00015616,2]
[384620066,1757484663154,-464.26588196,0.00015616,2]
[384620067,1757484663163,-470.0,0.00015616,2]
[384620068,1757484663173,-480.0,0.00015616,2]
[384620069,1757484663182,-480.0,0.00015616,2]
[384620070,1757484663191,-480.0,0.00015616,2]
[384620071,1757484663200,-480.0,0.00015616,2]
[384620072,1757484663210,-480.0,0.00015616,2]
[384620073,1757484663219,-480.0,0.00015616,2]
[384620074,1757484663228,-480.0,0.00015616,2]
[384620075,1757484663238,-480.0,0.00015616,2]
[384620076,1757484663248,-216.19539234,0.00015616,2]
[384620077,1757484663257,-480.0,0.00015616,2]
[384620078,1757484663266,-480.0,0.00015616,2]
[384620079,1757484663275,-480.0,0.00015616,2]
[384620080,1757484663284,-480.0,0.00015616,2]
[384620081,1757484663293,-480.0,0.00015616,2]
[384620082,1757484663302,-480.0,0.00015616,2]
[384620083,1757484663312,-480.0,0.00015616,2]
[384620084,1757484663322,-480.0,0.00015616,2]
[384620085,1757484663331,-480.0,0.00015616,2]
[384620086,1757484663340,-480.0,0.00015616,2]
[384620087,1757484663349,-480.0,0.00015616,2]
[384620088,1757484663358,-480.0,0.00015616,2]
[384620089,1757484663367,-480.0,0.00015616,2]
[384620090,1757484663377,-480.0,0.00015616,2]
[384620091,1757484663386,-480.0,0.00015616,2]
[384620092,1757484663395,-480.0,0.00015616,2]
[384620093,1757484663405,-480.0,0.00015616,2]
[384620094,1757484663414,-480.0,0.00015616,2]
[384620095,1757484663423,-480.0,0.00015616,2]
[384620096,1757484663432,-480.0,0.00015616,2]
[384620097,1757484663441,-480.0,0.00015616,2]
[384620098,1757484663451,-480.0,0.00015616,2]
[384620099,1757484663460,-898.09,0.00015616,2]
[384620100,1757484663469,-480.0,0.00015616,2]
[384620101,1757484663478,-987.19,0.00015616,2]
[384620102,1757484663488,-480.0,0.00015616,2]
[384620103,1757484663497,-8763.89,0.00015616,2]
[384620104,1757484663506,-480.0,0.00015616,2]
[384620105,1757484663516,-480.0,0.00015616,2]
[384620106,1757484663526,-723.59,0.00015616,2]
[384620107,1757484663535,-480.0,0.00015616,2]
[384620108,1757484663545,-480.0,0.00015616,2]
[384620109,1757484663554,-480.0,0.00015616,2]
[384620110,1757484663564,-480.0,0.00015616,2]
[384620111,1757484663574,-480.0,0.00015616,2]
[384620112,1757484663584,-480.0,0.00015616,2]
[384620113,1757484663593,-480.0,0.00015616,2]
[384620114,1757484663603,-480.0,0.00015616,2]
[384620115,1757484663612,-480.0,0.00015616,2]
[384620116,1757484663622,-480.0,0.00015616,2]
[384620117,1757484663631,-585.24,0.00015616,2]
[384620118,1757484663640,-480.0,0.00015616,2]
[384620119,1757484663650,-480.0,0.00015616,2]
[384620120,1757484663659,-760.57,0.00015616,2]
[384620121,1757484663774,-480.0,0.00015616,2]
[384620122,1757484663786,-480.0,0.00015616,2]
[384620123,1757484663796,-480.0,0.00015616,2]
[384620124,1757484663806,-815.92,0.00015616,2]
[384620125,1757484663816,-480.0,0.00015616,2]
[384620126,1757484663827,-480.0,0.00015616,2]
[384620127,1757484663836,-480.0,0.00015616,2]
[384620128,1757484663846,-480.0,0.00015616,2]
[384620129,1757484663856,-480.0,0.00015616,2]
[384620130,1757484663866,-480.0,0.00015616,2]
[384620131,1757484663875,-480.0,0.00015616,2]
[384620132,1757484663885,-480.0,0.00015616,2]
[384620133,1757484663895,-480.0,0.00015616,2]
[384620134,1757484663904,-480.0,0.00015616,2]
[384620135,1757484663914,-489.44652936,0.00015616,2]
[384620136,1757484663923,-480.0,0.00015616,2]
[384620137,1757484663933,-480.0,0.00015616,2]
[384620138,1757484663942,-106.42016526,0.00015616,2]
[384620149,1757485081871,180.0,0.00013289,2]
[384620174,1757485224131,1736.16954399,0.00013158,2]
[384620175,1757485224156,183.83045601,0.00013158,2]
[384620180,1757485445119,200.0,0.00022,30]
[384620182,1757485502955,300.0,0.00025,30]
[384620183,1757485507454,1166.48362288,0.000145,9]
[384620194,1757485653147,-176.91289056,0.00013327,2]
[384620195,1757485653168,-176.91289056,0.00013598,2]
[384620196,1757485653190,-1387.60730028,0.00013598,2]
[384620197,1757485653213,-300.0,0.00013695,2]
[384620198,1757485653236,-1200.0,0.00013695,2]
[384620199,1757485653259,-300.0,0.00013696,2]
[384620200,1757485653285,-300.0,0.00013696,2]
[384620201,1757485653314,-300.0,0.00013696,2]
[384620202,1757485653338,-1200.0,0.00013696,2]
[384620203,1757485653362,-12156.87968392,0.00013697,2]
[384620204,1757485653386,-162.21745488,0.00013697,2]
[384620242,1757485831989,-2658.39195726,0.0001356,2]
[384620250,1757485832051,-1019.09129407,0.0001356,2]
[384620252,1757485832060,-99.36027651,0.00013598,2]
[384620464,1757485837961,-180.01552909,0.00013598,2]
[384620466,1757485837971,-1214.15638771,0.00013598,2]
[384620468,1757485837980,-300.0,0.00013696,2]
[384620470,1757485837989,-34.61422217,0.00013697,2]
[384620472,1757485837998,-78.09051651,0.00013697,2]
[384620475,1757485838009,-421.90948349,0.00013697,2]
[384620476,1757485838018,-154.6815547,0.00013697,2]
[384620478,1757485838027,-500.0,0.00013697,2]
[384620480,1757485838037,-192.55905649,0.00013697,2]
[384620482,1757485838046,-330.92881826,0.00013697,2]
[384620483,1757485838055,-464.69959971,0.00013697,2]
[384620484,1757485838065,-500.0,0.00013697,2]
[384620485,1757485838074,-500.0,0.00013697,2]
[384620486,1757485838083,-500.0,0.00013697,2]
[384620487,1757485838092,-113.46826499,0.00013698,2]
[384620488,1757485838106,-366.53173501,0.00013698,2]
[384620489,1757485838115,-486.76476536,0.00013698,2]
[384620490,1757485838124,-480.0,0.00013698,2]
[384620491,1757485838134,-302.57944759,0.00013698,2]
[384620492,1757485838143,-436.55549597,0.00013698,2]
[384620493,1757485838152,-386.92602374,0.00013698,2]
[384620494,1757485838161,-480.0,0.00013698,2]
[384620495,1757485838171,-480.0,0.00013698,2]
[384620496,1757485838180,-480.0,0.00013698,2]
[384620497,1757485838189,-486.43387931,0.00013698,2]
[384620498,1757485838198,-129.0852199,0.00013698,2]
[384620499,1757485838210,-258.54208099,0.00013698,2]
[384620500,1757485838219,-489.7190356,0.00013698,2]
[384620501,1757485838229,-480.0,0.00013698,2]
[384620502,1757485838238,-480.0,0.00013698,2]
[384620503,1757485838248,-480.0,0.00013698,2]
[384620504,1757485838257,-480.0,0.00013698,2]
[384620505,1757485838267,-480.0,0.00013698,2]
[384620506,1757485838276,-480.0,0.00013698,2]
[384620507,1757485838286,-419.73808744,0.00013698,2]
[384620508,1757485838297,-60.26191256,0.00013698,2]
[384620509,1757485838307,-483.69540513,0.00013698,2]
[384620510,1757485838316,-480.0,0.00013698,2]
[384620511,1757485838326,-480.0,0.00013698,2]
[384620512,1757485838335,-480.0,0.00013698,2]
[384620513,1757485838345,-480.0,0.00013698,2]
[384620514,1757485838356,-485.55828457,0.00013698,2]
[384620515,1757485838370,-291.71911085,0.00013698,2]
[384620516,1757485838382,-188.28088915,0.00013698,2]
[384620517,1757485838391,-491.04958491,0.00013698,2]
[384620518,1757485838401,-483.95377468,0.00013698,2]
[384620519,1757485838410,-483.04445393,0.00013698,2]
[384620520,1757485838420,-480.0,0.00013698,2]
[384620521,1757485838429,-480.0,0.00013698,2]
[384620522,1757485838439,-522.66500217,0.00013698,2]
[384620523,1757485838448,-480.0,0.00013698,2]
[384620524,1757485838457,-480.0,0.00013698,2]
[384620525,1757485838467,-492.87643169,0.00013698,2]
[384620526,1757485838476,-480.0,0.00013698,2]
[384620527,1757485838486,-480.0,0.00013698,2]
[384620528,1757485838495,-480.0,0.00013698,2]
[384620529,1757485838504,-480.0,0.00013698,2]
[384620530,1757485838513,-480.0,0.00013698,2]
[384620531,1757485838523,-480.0,0.00013698,2]
[384620532,1757485838532,-480.0,0.00013698,2]
[384620533,1757485838541,-480.0,0.00013698,2]
[384620534,1757485838551,-480.0,0.00013698,2]
[384620535,1757485838560,-480.0,0.00013698,2]
[384620536,1757485838569,-480.0,0.00013698,2]
[384620537,1757485838578,-480.0,0.00013698,2]
[384620538,1757485838587,-480.0,0.00013698,2]
[384620539,1757485838596,-480.0,0.00013698,2]
[384620540,1757485838606,-503.8374256,0.00013698,2]
[384620541,1757485838615,-480.0,0.00013698,2]
[384620542,1757485838624,-480.0,0.00013698,2]
[384620543,1757485838633,-480.0,0.00013698,2]
[384620544,1757485838643,-501.87603153,0.00013698,2]
[384620545,1757485838652,-480.0,0.00013698,2]
[384620546,1757485838661,-483.75239138,0.00013698,2]
[384620547,1757485838670,-480.0,0.00013698,2]
[384620548,1757485838679,-480.0,0.00013698,2]
[384620549,1757485838689,-480.0,0.00013698,2]
[384620550,1757485838698,-409.7277245,0.00013698,2]
[384620592,1757485840125,-70.2722755,0.00013698,2]
[384620594,1757485840135,-480.0,0.00013698,2]
[384620596,1757485840145,-480.0,0.00013698,2]
[384620598,1757485840154,-480.0,0.00013698,2]
[384620600,1757485840163,-480.0,0.00013698,2]
[384620602,1757485840173,-480.0,0.00013698,2]
[384620604,1757485840183,-480.0,0.00013698,2]
[384620606,1757485840192,-480.0,0.00013698,2]
[384620608,1757485840201,-480.0,0.00013698,2]
[384620610,1757485840210,-480.0,0.00013698,2]
[384620612,1757485840219,-480.0,0.00013698,2]
[384620614,1757485840229,-480.0,0.00013698,2]
[384620616,1757485840238,-480.0,0.00013698,2]
[384620618,1757485840247,-480.0,0.00013698,2]
[384620620,1757485840257,-480.0,0.00013698,2]
[384620622,1757485840266,-480.27096398,0.00013698,2]
[384620624,1757485840276,-482.91256193,0.00013698,2]
[384620626,1757485840285,-487.43866919,0.00013698,2]
[384620628,1757485840295,-481.1272992,0.00013698,2]
[384620630,1757485840304,-481.99159034,0.00013698,2]
[384620632,1757485840313,-480.0,0.00013698,2]
[384620634,1757485840322,-484.69629955,0.00013698,2]
[384620636,1757485840332,-480.0,0.00013698,2]
[384620638,1757485840341,-480.0,0.00013698,2]
[384620640,1757485840350,-171.37992175,0.00013698,2]
[384620642,1757485840363,-484.91859723,0.00013698,2]
[384620644,1757485840374,-480.0,0.00013698,2]
[384620646,1757485840382,-329.55049277,0.00013698,2]
[384620648,1757485840392,-480.0,0.00013698,2]
[384620650,1757485840402,-480.0,0.00013698,2]
[384620652,1757485840411,-480.0,0.00013698,2]
[384620654,1757485840420,-480.0,0.00013698,2]
[384620656,1757485840433,-480.0,0.00013698,2]
[384620658,1757485840442,-480.0,0.00013698,2]
[384620660,1757485840454,-480.0,0.00013698,2]
[384620662,1757485840463,-627.90112269,0.00013698,2]
[384620664,1757485840473,-482.22726583,0.00013698,2]
[384620666,1757485840482,-480.0,0.00013698,2]
[384620668,1757485840491,-480.0,0.00013698,2]
[384620670,1757485840501,-484.68852537,0.00013698,2]
[384620672,1757485840510,-480.0,0.00013698,2]
[384620674,1757485840520,-487.40001461,0.00013698,2]
[384620676,1757485840529,-480.0,0.00013698,2]
[384620678,1757485840538,-480.0,0.00013698,2]
[384620680,1757485840547,-480.0,0.00013698,2]
[384620682,1757485840556,-480.0,0.00013698,2]
[384620684,1757485840566,-482.47190283,0.00013698,2]
[384620686,1757485840575,-480.0,0.00013698,2]
[384620688,1757485840585,-480.0,0.00013698,2]
[384620690,1757485840594,-480.0,0.00013698,2]
[384620692,1757485840603,-480.0,0.00013698,2]
[384620694,1757485840612,-480.0,0.00013698,2]
[384620696,1757485840621,-480.0,0.00013698,2]
[384620698,1757485840630,-480.0,0.00013698,2]
[384620700,1757485840640,-480.0,0.00013698,2]
[384620702,1757485840650,-487.84017376,0.00013698,2]
[384620704,1757485840659,-480.0,0.00013698,2]
[384620706,1757485840668,-480.0,0.00013698,2]
[384620708,1757485840678,-486.50945096,0.00013698,2]
[384620710,1757485840687,-481.30586475,0.00013698,2]
[384620712,1757485840697,-480.0,0.00013698,2]
[384620714,1757485840706,-480.0,0.00013698,2]
[384620716,1757485840715,-492.27666819,0.00013698,2]
[384620718,1757485840725,-480.0,0.00013698,2]
[384620720,1757485840734,-480.0,0.00013698,2]
[384620722,1757485840743,-480.0,0.00013698,2]
[384620724,1757485840753,-506.8303279,0.00013698,2]
[384620726,1757485840762,-481.79782016,0.00013698,2]
[384620728,1757485840770,-480.0,0.00013698,2]
[384620730,1757485840780,-480.0,0.00013698,2]
[384620732,1757485840788,-480.0,0.00013698,2]
[384620734,1757485840798,-480.0,0.00013698,2]
[384620736,1757485840807,-480.0,0.00013698,2]
[384620738,1757485840816,-480.0,0.00013698,2]
[384620740,1757485840825,-480.0,0.00013698,2]
[384620742,1757485840834,-480.0,0.00013698,2]
[384620744,1757485840843,-500.5238858,0.00013698,2]
[384620746,1757485840853,-496.07911151,0.00013698,2]
[384620748,1757485840862,-484.59056608,0.00013698,2]
[384620750,1757485840871,-356.31912488,0.00013698,2]